[Event "Turkish Youth Championships 2023"]
[Site "Samsun"]
[Date "2023.05.21"]
[Round "4.5"]
[White "Zerey, Demhat"]
[Black "Kavri, Yusuf Eren"]
[Result "0-1"]
[WhiteElo "1710"]
[BlackElo "2029"]
[Annotator "TA"]
[PlyCount "142"]
[EventDate "2023.05.19"]
[EventType "swiss"]
[EventCountry "TUR"]
[TimeControl "5400+30"]

{[%evp 21,142,-46,-42,-45,-50,-85,-32,-34,-33,-30,-30,-38,5,0,20,-16,-13,0,9,18,47,-104,31,31,137,116,114,22,152,140,128,121,114,99,89,79,84,0,0,-37,239,259,420,440,633,633,624,624,616,616,559,461,575,532,450,0,0,0,0,0,0,0,0,0,0,0,0,0,0,0,0,0,0,-94,-82,-391,-397,-364,-75,-75,-75,-75,-82,-90,-90,-188,-175,-964,-642,-5060,-3530,-2519,-1651,-5208,-2743,-4620,-1089,-5069,-4722,-7293,-6222,-6137,-6013,-5125,-5210,-5215,-5085,-1189,-661,-811,-800,-7233,-6904,-29976,-7128,-6454,-6556,-6454,-6454,-6129,-5700,-5222,-1624]} 1. Nf3 {[%emt 0:01:00]} d5 {[%emt 0:01:00]} 2. g3 {[%emt 0:00:30]} Nf6 {[%emt 0:01:30]} 3. Bg2 {[%emt 0:01:30]} e6 {[%emt 0:02:30]} 4. O-O {[%emt 0:00:30]} Be7 {[%emt 0:00:30]} 5. d3 {[%emt 0:00:30]} c5 {[%emt 0:00:30]} 6. Nbd2 {[%emt 0:01:30]} Nc6 {[%emt 0:00:30]} 7. e4 {[%emt 0:00:30]} O-O {[%emt 0:04:30]} 8. Re1 {[%emt 0:01:30]} Qc7 {[%emt 0:05:30]} 9. Qe2 {[%emt 0:07:30]} b5 {[%emt 0:07:30]} 10. e5 {[%emt 0:04:30]} Nd7 {[%emt 0:00:30]} 11. Nf1 {[%emt 0:00:30]} Bb7 {[%emt 0:02:30]} 12. Bf4 {[%emt 0:02:30] C00: French: Unusual White 2nd moves.} Rfc8 {[%emt 0:00:00]} 13. Ne3 {[%emt 0:02:30][%cal Oe3d5]} Qd8 {[%emt 0:01:00]} (13... Ncxe5 14. Nxe5 (14. Nxd5 Bxd5 15. Nxe5 Bxg2 $11) 14... Nxe5 15. Ng4 $16) ({Black should play} 13... Nf8 $1 $17) 14. h4 $15 {[%emt 0:03:30] Black is slightly better.} a5 {[%emt 0:02:30]} 15. a4 {[%emt 0:02:30]} bxa4 {[%emt 0:05:30] [#]} 16. Rxa4 $146 {[%emt 0:00:30][%cal Oe3d5]} ({Predecessor:} 16. Ng4 Nb6 17. h5 h6 18. Qd2 Nd4 19. Nxd4 cxd4 20. Bxh6 gxh6 21. Nxh6+ Kg7 22. Qf4 {0-1 Azaladze,S (2420)-Aleksandrov,A (2492) Bhubaneswar op-A 13th 2022 (5)}) 16... Nf8 {[%emt 0:08:30]} 17. Ng4 {[%emt 0:17:30]} Ba6 {[%emt 0:07:30]} 18. Rd1 {[%emt 0:16:30]} Bb5 {[%emt 0:07:30]} 19. Raa1 {[%emt 0:00:30]} c4 {[%emt 0:00:30]} 20. d4 {[%emt 0:01:30]} Nb4 {[%emt 0:03:30]} 21. Bg5 $2 {[%emt 0:06:30]} (21. Ne1 $14 {stays ahead.}) 21... Rcb8 {[%emt 0:01:30]} (21... Bxg5 $1 $17 22. Nxg5 (22. hxg5 c3 $15) 22... h6) 22. Qd2 {[%emt 0:02:30]} c3 {[%emt 0:05:30]} 23. bxc3 {[%emt 0:00:30]} (23. Qxc3 Bxg5 24. hxg5 (24. Nxg5 Be2 $15) 24... Rc8 $11) 23... Nc6 {[%emt 0:00:30]} 24. h5 {[%emt 0:00:30]} (24. Ne3 $16) 24... Nd7 {[%emt 0:00:00]} (24... Bxg5 $11 25. Nxg5 (25. Qxg5 Qxg5 26. Nxg5 Be2 $17) 25... h6) 25. h6 {[%emt 0:12:23] Threatens to win with hxg7.} g6 {[%emt 0:00:00]} 26. Rdb1 {[%emt 0:01:50]} a4 {[%emt 0:08:30]} 27. Bf1 {[%emt 0:03:41]} Bxf1 {[%emt 0:00:30]} 28. Rxf1 {[%emt 0:01:32]} a3 {[%emt 0:04:30] [#]} 29. c4 {[%emt 0:02:04]} dxc4 $11 {[%emt 0:08:40]} 30. Bxe7 {[%emt 0:02:44]} Qxe7 {[%emt 0:04:57][%mdl 8192] [#]} (30... Nxe7 $15 {keeps the upper hand.} 31. Ne3 Qc8) 31. d5 $1 $18 {[%emt 0:00:21]} exd5 {[%emt 0:00:39]} (31... c3 32. Qxc3 Nb4) 32. Qxd5 {[%emt 0:00:30]} Nb4 {[%emt 0:00:30] [#]} (32... Ncxe5 $142 33. Ngxe5 Nxe5) 33. Qxd7 $3 {[%emt 0:00:00][%mdl 576] Remove Defender, Decoy} Qxd7 {[%emt 0:02:12]} 34. Nf6+ {[%emt 0:00:21]} Kh8 {[%emt 0:00:30]} 35. Nxd7 {[%emt 0:00:00] A dynamic duo of knights.} Rb7 {[%emt 0:00:00]} 36. Nc5 {[%emt 0:03:19]} Rb5 {[%emt 0:00:34][%cal Ob4c2] [#]} 37. Rfd1 $1 {[%emt 0:01:48]} Nxc2 {[%emt 0:02:46]} (37... a2 38. Ne4) 38. Ra2 {[%emt 0:00:14]} ({White must play} 38. Rd7 $18 {[%cal Od7f7] aiming for Rxf7!} Rxc5 39. Rxf7) 38... Rb2 $36 {[%emt 0:00:13][%mdl 2048] Black has some pressure.} 39. Rxb2 {[%emt 0:00:27]} axb2 {[%emt 0:00:07]} 40. Na4 $1 {[%emt 0:00:25][%mdl 64] Deflection, Back Rank} Nd4 $1 {[%emt 0:03:00]} 41. Nxd4 {[%emt 0:00:15]} (41. Rxd4 $2 {is the wrong capture.} b1=Q+ 42. Kg2 Qb4 $19) 41... Rxa4 {[%emt 0:00:00][%mdl 4096] Endgame KRN-KR} 42. Nc2 {[%emt 0:01:37][%cal Rd1d8] Repels Ra1} Ra8 {[%emt 0:00:00] Prevents Rd8+.} 43. Kf1 {[%emt 0:00:14]} Rb8 {[%emt 0:00:15]} 44. Rb1 $1 {[%emt 0:01:04]} c3 {[%emt 0:00:01]} 45. Ke2 {[%emt 0:00:00] Hoping for Kd3.} Rd8 {[%emt 0:00:24]} 46. Ke3 {[%emt 0:00:35] Nd4 would be deadly.} Rd2 {[%emt 0:02:43]} 47. Nd4 {[%emt 0:00:25]} (47. Na3 $11) 47... Kg8 $17 {[%emt 0:00:49] White must now prevent ...Kf8.} 48. f4 $2 {[%emt 0:00:38][%mdl 8192]} (48. Ne2 $17 {is more resistant.} c2 49. Rxb2) 48... Kf8 $19 {[%emt 0:00:08][%cal Od2d4] ...Rxd4! is the strong threat.} 49. Nb3 {[%emt 0:00:30] [#]} c2 $2 {[%emt 0:00:42]} (49... Rd1 $1 $19 {[%cal Rd1b1]} 50. Rxd1 c2) 50. Rxb2 $17 {[%emt 0:00:21] [#]} c1=Q {[%emt 0:00:08]} 51. Nxc1 {[%emt 0:00:46]} Rxb2 {[%emt 0:00:30] KR-KN} 52. g4 {[%emt 0:00:00]} Ke7 {[%emt 0:00:00] Black is more active.} 53. Nd3 {[%emt 0:00:00]} (53. Ne2 $17) 53... Rh2 $19 {[%emt 0:00:29]} 54. g5 $2 {[%emt 0:00:00]} (54. Ke4) 54... Ke6 {[%emt 0:00:11]} 55. Ke4 {[%emt 0:00:36]} Re2+ {[%emt 0:00:30]} 56. Kf3 {[%emt 0:00:00]} Ra2 {[%emt 0:00:00]} 57. Kg4 {[%emt 0:00:05]} Rc2 {[%emt 0:01:35] And now ...Rc3 would win.} 58. Ne1 {[%emt 0:00:35]} Rc3 {[%emt 0:00:49] Strongly threatening ...Kd5.} 59. Nf3 {[%emt 0:01:09]} Kd5 {[%emt 0:00:11]} 60. Nd2 {[%emt 0:01:32]} Rd3 {[%emt 0:00:30]} 61. Nf1 {[%emt 0:00:30]} Ke4 {[%emt 0:00:30]} 62. Ng3+ {[%emt 0:00:30]} Ke3 {[%emt 0:00:30]} 63. f5 {[%emt 0:00:27]} Rd4+ {[%emt 0:01:34]} 64. Kh3 {[%emt 0:00:03]} Kf2 {[%emt 0:00:10]} 65. Nh1+ {[%emt 0:01:00]} Kf3 {[%emt 0:00:52]} 66. Ng3 {[%emt 0:00:06]} Rg4 {[%emt 0:00:10]} 67. Ne2 {[%emt 0:00:30]} Rxg5 {[%emt 0:00:29]} (67... gxf5 $142 68. Nc3 Rg3+ 69. Kh2 Rxg5 70. Nd5 f4 71. Nc3 Rxe5 72. Nb1 Rh5+ 73. Kg1 Rxh6 74. Nc3 Rd6 75. Nb5 Rd3 76. Kh2 Ke3 77. Kg2 f3+ 78. Kh3 f2 79. Kg4 f1=Q 80. Nc3 Rd4+ 81. Ne4 Rxe4+ 82. Kh5 Qf5+ 83. Kh6 Qg6#) 68. Nd4+ {[%emt 0:00:21] Black is clearly winning.} Ke4 {[%emt 0:00:16]} 69. e6 {[%emt 0:00:38]} fxe6 {[%emt 0:00:39]} (69... Kxd4 $2 70. e7 $18) 70. Nxe6 {[%emt 0:00:11]} Rxf5 {[%emt 0:00:00] ( -> ...Re5)} 71. Kg4 {[%emt 0:00:17]} Rh5 {[%emt 0:00:23] Black used his chance.   Weighted Error Value: White=0.76/Black=0.57} (71... Kd5 $142 72. Ng7 Rf1) 0-1

[Event "Turkish Youth Championships 2023"]
[Site "Samsun"]
[Date "2023.05.21"]
[Round "4.6"]
[White "Temizer, Umut"]
[Black "Eroz, Enis"]
[Result "1/2-1/2"]
[WhiteElo "1973"]
[BlackElo "1830"]
[Annotator "TA"]
[PlyCount "74"]
[EventDate "2023.05.19"]
[EventType "swiss"]
[EventCountry "TUR"]
[TimeControl "5400+30"]

{[%evp 12,74,23,2,55,20,21,17,22,40,44,36,50,0,0,0,3,1,16,-4,52,60,50,31,66,73,55,-10,-19,0,0,-22,0,-45,-53,-43,-60,-52,-10,-18,-13,-39,0,0,0,0,0,0,0,0,0,0,0,0,156,162,119,-25,0,-155,-139,-151,-147,-139,822]} 1. e4 {[%emt 0:01:00]} c5 {[%emt 0:01:00]} 2. Nf3 {[%emt 0:00:30]} d6 {[%emt 0:01:30]} 3. d4 {[%emt 0:00:30]} cxd4 {[%emt 0:01:30]} 4. Nxd4 {[%emt 0:01:30]} Nf6 {[%emt 0:00:30]} 5. Nc3 {[%emt 0:00:30]} a6 {[%emt 0:00:30]} 6. h3 {[%emt 0:05:30]} e5 {[%emt 0:01:30]} 7. Nb3 {[%emt 0:01:30]} h5 {[%emt 0:12:30] Recently 7...Be7 got a lot of attention. B90: Sicilian Najdorf: Unusual White 6th moves, 6 Be3 Ng4 and 6 Be3 e5.} (7... Be7 $11) 8. Rg1 {[%emt 0:07:30]} h4 {[%emt 0:11:30]} 9. Be3 {[%emt 0:02:30]} Be7 {[%emt 0:05:30] The position is equal.} 10. Qd2 {[%emt 0:03:30]} Be6 {[%emt 0:01:30]} 11. O-O-O {[%emt 0:02:30]} Nbd7 {[%emt 0:03:30] [#]} 12. Be2 $146 {[%emt 0:12:30]} (12. g4 $14) ({Predecessor:} 12. Kb1 b5 13. f3 Nb6 14. Qf2 Nc4 15. Bxc4 Bxc4 16. Na5 Qxa5 17. Bb6 Bxa2+ 18. Nxa2 {0-1 Huschenbeth,N (2607)-Koelle,T (2433) German Masters 2022 (7)}) 12... b5 {[%emt 0:04:30]} 13. f4 {[%emt 0:04:30]} Rc8 {[%emt 0:15:30]} 14. Kb1 {[%emt 0:08:30]} Qc7 {[%emt 0:23:35]} 15. Rge1 {[%emt 0:09:30]} Qb8 {[%emt 0:00:30]} (15... O-O $11) 16. Bf3 $14 {[%emt 0:04:30]} O-O {[%emt 0:09:15]} 17. g4 {[%emt 0:00:30]} exf4 {[%emt 0:02:46]} 18. Bxf4 {[%emt 0:04:30]} Ne5 {[%emt 0:00:30]} 19. Bxe5 {[%emt 0:00:30]} (19. Bg2 $14) 19... dxe5 $11 {[%emt 0:00:00]} 20. Nd5 {[%emt 0:03:30] Against Bb4} Bd8 {[%emt 0:00:00]} 21. Qg2 {[%emt 0:03:30]} g6 {[%emt 0:01:44]} 22. Nxf6+ {[%emt 0:03:10]} Bxf6 {[%emt 0:00:31]} 23. g5 {[%emt 0:00:30]} Be7 {[%emt 0:00:00]} 24. Bg4 {[%emt 0:00:00]} Qb6 {[%emt 0:00:12][%cal Oa6a5]} 25. Bxe6 {[%emt 0:02:21]} Qxe6 {[%emt 0:00:16]} 26. Rd5 {[%emt 0:00:22]} Rc6 {[%emt 0:01:51]} 27. Nc1 {[%emt 0:01:33]} Rd8 {[%emt 0:00:41]} 28. Nd3 {[%emt 0:00:17]} Rcd6 {[%emt 0:00:39]} 29. Nb4 {[%emt 0:02:22]} (29. Nxe5 $2 Qxe5 30. Qh1 Rxd5 31. exd5 Qxg5 $19) 29... a5 {[%emt 0:00:27]} 30. Rxd6 {[%emt 0:00:37][%mdl 64] Remove Defender} Rxd6 {[%emt 0:00:39]} (30... Bxd6 31. Nd5 $14) 31. Nd5 {[%emt 0:00:02]} Kg7 {[%emt 0:00:36]} 32. Rg1 {[%emt 0:01:17]} Rc6 $2 {[%emt 0:00:22]} (32... Rd8 $11) 33. Qf2 $1 $16 {[%emt 0:03:46]} Rc8 {[%emt 0:00:24]} (33... Bc5 $2 34. Qxh4 Bxg1 35. Qh6+ Kg8 36. Nf6+) 34. Nxe7 {[%emt 0:06:45]} ({White has to play} 34. Qxh4 $16 {Qh6+ would be deadly.} Rc4 35. Qe1 (35. b3 Rd4 $18)) 34... Qxe7 $11 {[%emt 0:00:30]} 35. Qxh4 $2 {[%emt 0:00:00] [#]} (35. Rf1 $11) 35... Rxc2 $3 $17 {[%emt 0:00:00][%mdl 576] Decoy. Black is clearly better.} 36. Qg3 {[%emt 0:02:09] [#]} Rd2 {[%emt 0:00:39]} ({And not} 36... Qc5 37. Rf1 Rd2 38. Qb3 $15) 37. Rf1 {[%emt 0:00:30] [#]} Rc2 $2 {[%emt 0:00:52][%mdl 40960] An exciting game.   Weighted Error Value: White=0.22 (precise) /Black=0.19 (very precise) . An unexpected result.} 1/2-1/2

[Event "Turkish Youth Championships 2023"]
[Site "Samsun"]
[Date "2023.05.22"]
[Round "4.8"]
[White "Binboga, Yaman"]
[Black "Demirbas, Emre"]
[Result "0-1"]
[ECO "B45"]
[WhiteElo "1653"]
[BlackElo "2013"]
[Annotator "NA COMBH"]
[PlyCount "76"]
[EventDate "2023.05.19"]
[EventType "swiss"]
[EventCountry "TUR"]
[SourceTitle "playchess.com"]
[Source "ChessBase"]
[SourceQuality "1"]
[TimeControl "5400+30"]

1. e4 {[%emt 0:01:00]} c5 {[%emt 0:02:00]} 2. Nf3 {[%emt 0:00:30]} e6 {[%emt 0:00:30]} 3. d4 {[%emt 0:00:30]} cxd4 {[%emt 0:00:30]} 4. Nxd4 {[%emt 0:00:30]} Nf6 {[%emt 0:00:30]} 5. Nc3 {[%emt 0:00:30]} Nc6 {[%emt 0:00:30]} 6. Nxc6 {[%emt 0:00:00]} bxc6 {[%emt 0:00:30]} 7. e5 {[%emt 0:00:00]} Nd5 {[%emt 0:00:30]} 8. Ne4 {[%emt 0:00:30]} Qc7 {[%emt 0:00:30]} 9. f4 {[%emt 0:00:00]} Qb6 {[%emt 0:01:30]} 10. c4 {[%emt 0:00:00]} Bb4+ {[%emt 0:00:30]} 11. Ke2 {[%emt 0:00:30]} f5 {[%emt 0:00:00]} 12. Nf2 {[%emt 0:00:30]} Ba6 {[%emt 0:06:00]} 13. Kf3 {[%emt 0:00:30]} Ne7 {[%emt 0:00:30]} 14. Be3 {[%emt 0:00:30]} Bc5 {[%emt 0:02:30]} 15. Bxc5 {[%emt 0:00:30]} Qxc5 {[%emt 0:00:00]} 16. Qd6 {[%emt 0:00:00]} Qb6 {[%emt 0:04:00]} 17. b3 {[%emt 0:00:00]} Nc8 {[%emt 0:05:30]} 18. Qa3 {[%emt 0:08:30]} Bb7 {[%emt 0:01:30]} 19. Rd1 {[%emt 0:45:30]} Ne7 {[%emt 0:05:30]} 20. Qd6 {[%emt 0:01:30]} Rd8 {[%emt 0:01:30]} 21. Nd3 {[%emt 0:00:30]} Nc8 {[%emt 0:01:30]} 22. Qc5 {[%emt 0:04:30]} d6 {[%emt 0:01:30]} 23. exd6 {[%emt 0:07:30]} Nxd6 {[%emt 0:01:30]} 24. Qxb6 {[%emt 0:02:30]} axb6 {[%emt 0:00:30]} 25. c5 {[%emt 0:02:30]} Ne4 {[%emt 0:00:30]} 26. cxb6 {[%emt 0:00:30]} c5 {[%emt 0:01:30]} 27. Ke3 {[%emt 0:00:30]} Ke7 {[%emt 0:03:30]} 28. Be2 {[%emt 0:00:30]} Rd6 {[%emt 0:02:30]} 29. Ne5 {[%emt 0:08:00]} Bd5 {[%emt 0:02:30]} 30. Nc4 {[%emt 0:12:08]} Rc6 {[%emt 0:04:30]} 31. a4 {[%emt 0:04:07]} Bxc4 {[%emt 0:04:30]} 32. Bxc4 {[%emt 0:00:30]} Rxb6 {[%emt 0:00:00]} 33. a5 {[%emt 0:00:19]} Rb4 {[%emt 0:01:00]} 34. Rhe1 {[%emt 0:01:07]} Ra8 {[%emt 0:08:30]} 35. Kd3 {[%emt 0:00:48]} Nf2+ {[%emt 0:00:30]} 36. Kc2 {[%emt 0:00:30]} Nxd1 {[%emt 0:00:00]} 37. Rxe6+ {[%emt 0:00:28]} Kd7 {[%emt 0:00:00]} 38. Re1 {[%emt 0:00:05]} Nf2 {[%emt 0:00:30]} 0-1

[Event "Turkish Youth Championships 2023"]
[Site "Samsun"]
[Date "2023.05.21"]
[Round "4.8"]
[White "Kaynak, Deniz Can"]
[Black "Engin, Onur Cinar"]
[Result "0-1"]
[WhiteElo "1651"]
[BlackElo "1922"]
[Annotator "TA"]
[PlyCount "119"]
[EventDate "2023.05.19"]
[EventType "swiss"]
[EventCountry "TUR"]
[TimeControl "5400+30"]

{[%evp 14,119,28,29,27,21,36,31,35,30,29,29,30,28,45,44,31,39,51,54,113,112,116,108,127,125,148,-137,-139,-124,-111,-114,-111,-107,0,0,0,0,0,0,0,-111,-119,-117,-116,-113,0,0,0,0,0,0,0,0,0,-69,-70,-125,-80,-111,0,0,0,0,0,0,0,0,0,0,0,-8,0,0,0,0,0,0,0,0,0,0,0,-8,-8,-8,-8,-8,-8,-29981,-29982,-29982,-29983,-29987,-29988,-29989,-29990,-29990,-29991,-29992,-29993,-29996,-29997,-29997,-29995,-29995,-29996,-29996]} 1. c4 {[%emt 0:01:00]} c6 {[%emt 0:01:00]} 2. g3 {[%emt 0:00:30]} d5 {[%emt 0:00:30]} 3. Nf3 {[%emt 0:00:30]} Nf6 {[%emt 0:00:30]} 4. Bg2 {[%emt 0:00:30]} g6 {[%emt 0:00:30]} 5. b3 {[%emt 0:00:30]} Bg7 {[%emt 0:00:30]} 6. Bb2 {[%emt 0:00:30]} Qb6 {[%emt 0:00:30]} 7. Qc2 {[%emt 0:00:30]} O-O {[%emt 0:00:30]} 8. O-O {[%emt 0:00:30]} Bg4 {[%emt 0:00:30] A11: English Opening: 1...c6.} 9. d3 {[%emt 0:00:00]} Nbd7 {[%emt 0:00:00]} (9... Bxf3 {simplifies} 10. Bxf3 d4 11. c5 Qd8) 10. Nbd2 {[%emt 0:00:00]} Rfe8 {[%emt 0:00:00] White is slightly better.} 11. h3 {[%emt 0:13:30]} Bxf3 {[%emt 0:00:30]} 12. Nxf3 {[%emt 0:01:30]} e5 {[%emt 0:03:30]} 13. e3 {[%emt 0:04:30]} Rad8 {[%emt 0:11:30] [#]} 14. Rac1 $146 {[%emt 0:08:30]} ({Predecessor:} 14. Rad1 h6 15. d4 e4 16. Nd2 Rc8 17. Nb1 h5 18. h4 {½-½ Benci,J (1520)-Rosol,P (1885) Bratislava Slovakia op rapid 2022 (5)}) 14... Qa5 {[%emt 0:11:30]} 15. Nd2 {[%emt 0:18:30]} Bh6 {[%emt 0:17:30]} (15... Qxa2 $2 16. Ra1 $18) 16. a3 {[%emt 0:16:30]} d4 {[%emt 0:10:30]} 17. b4 $16 {[%emt 0:00:30]} Qc7 {[%emt 0:01:30]} 18. exd4 {[%emt 0:06:30]} exd4 {[%emt 0:00:30]} 19. Bxd4 {[%emt 0:03:30]} Re2 {[%emt 0:01:30]} 20. f4 $2 {[%emt 0:05:25][%mdl 8192]} (20. Bc3 $16 {keeps the pressure on.}) 20... Nh5 $36 {[%emt 0:00:30][%mdl 2048] Black is on the roll.} 21. Bf2 {[%emt 0:00:30] [#]} Nxf4 $1 {[%emt 0:04:30][%mdl 512]} 22. gxf4 {[%emt 0:07:35]} Qxf4 {[%emt 0:01:30]} 23. Bxa7 {[%emt 0:06:18]} Qg3 {[%emt 0:16:23]} (23... Qxd2 $17 24. Qxd2 Bxd2) 24. Rf2 $11 {[%emt 0:02:31]} Be3 {[%emt 0:00:07] Dancing on a razor blade.} 25. Bxe3 {[%emt 0:00:28]} Qxe3 {[%emt 0:00:04]} 26. Rcf1 {[%emt 0:00:56]} Ne5 $1 {[%emt 0:00:58]} 27. Qd1 {[%emt 0:01:21]} (27. c5 $11 {was the only way to keep the balance.}) 27... Rxf2 $17 {[%emt 0:00:16] Black is much more active.} 28. Rxf2 {[%emt 0:00:00]} Nxd3 {[%emt 0:01:23][%mdl 64] [#] Pin} 29. Ne4 {[%emt 0:00:14] aiming for Qf3.} f5 {[%emt 0:05:05]} ({Black should play} 29... Qd4 $17 {Strongly threatening ...f5.} 30. Qg4 (30. Nf6+ $2 Kg7 $19) 30... f5) 30. Qd2 $11 {[%emt 0:00:15]} Qd4 {[%emt 0:01:36][%mdl 64] Pin} 31. Nc5 {[%emt 0:00:45]} Nxf2 {[%emt 0:01:08]} 32. Qxd4 {[%emt 0:00:30]} Nxh3+ {[%emt 0:00:30]} 33. Bxh3 {[%emt 0:00:52]} Rxd4 {[%emt 0:00:18]} 34. Nxb7 {[%emt 0:00:05]} ({White should try} 34. Bf1 $1 $11) 34... Rxc4 $15 {[%emt 0:00:00]} 35. Bg2 {[%emt 0:00:16]} (35. Bf1 $15 Rc1 36. Nc5) 35... Rc1+ {[%emt 0:02:31]} 36. Kh2 {[%emt 0:00:53]} Ra1 {[%emt 0:00:03]} (36... Rc3 $17 37. a4 Rc4) 37. Bxc6 $11 {[%emt 0:00:00]} Ra2+ {[%emt 0:00:19]} 38. Kg1 {[%emt 0:00:48] Threatens to win with Bd5+.} Rxa3 {[%emt 0:00:05]} 39. b5 {[%emt 0:00:00]} Kf8 {[%emt 0:03:24]} 40. Nc5 {[%emt 0:00:40]} Rc3 {[%emt 0:02:35]} 41. Nd7+ {[%emt 0:01:24]} Ke7 {[%emt 0:00:23]} 42. b6 {[%emt 0:00:45] Hoping for b7.} Rxc6 {[%emt 0:00:36][%mdl 4096] Endgame KR-KN} (42... Rb3 {simplifies} 43. Kg2 Rb1 44. b7 Rxb7 45. Bxb7 Kxd7 46. Bf3 Kd6) 43. b7 {[%emt 0:00:30]} Rc1+ {[%emt 0:00:00]} (43... Kxd7 $2 44. b8=Q $18 (44. b8=B $2 {loses.} g5 $19)) 44. Kg2 {[%emt 0:00:11] Nb6 would be deadly.} Rb1 {[%emt 0:00:17] Against Nb6} (44... Kxd7 $2 45. b8=Q $18 (45. b8=B $2 {is the wrong capture.} g5 $19)) 45. b8=Q {[%emt 0:00:00]} Rxb8 {[%emt 0:00:12]} 46. Nxb8 {[%emt 0:00:00] KN-K3P} Kd6 {[%emt 0:01:23]} 47. Na6 {[%emt 0:00:00]} g5 {[%emt 0:00:32][%cal Bg6g5,Bg5g4,Bg4g3,Bg3g2][%mdl 32]} 48. Nb4 {[%emt 0:00:00]} Ke5 {[%emt 0:00:59] And now ...h5 would win.} 49. Kf3 {[%emt 0:00:48]} g4+ {[%emt 0:01:47]} 50. Kg3 {[%emt 0:00:21]} Ke4 {[%emt 0:00:20]} (50... h5 $5 51. Nd3+ $8 Kf6 $11) 51. Nc2 $2 {[%emt 0:01:21][%mdl 8192] Loses the game.} (51. Na6 $11 h6 52. Nc5+ Ke3 53. Na4) 51... h5 {[%emt 0:00:10][%cal Bh7h5,Bh5h4,Bh4h3][%mdl 32] Black mates.} 52. Ne1 {[%emt 0:01:44]} f4+ {[%emt 0:00:14]} 53. Kf2 {[%emt 0:01:02]} h4 {[%emt 0:01:31]} 54. Ng2 {[%emt 0:00:29]} g3+ {[%emt 0:00:43]} 55. Kg1 {[%emt 0:00:31]} h3 {[%emt 0:00:13]} 56. Ne1 {[%emt 0:00:29]} f3 {[%emt 0:00:19]} 57. Nd3 {[%emt 0:00:31]} Kxd3 {[%emt 0:00:49]} 58. Kh1 {[%emt 0:00:07]} g2+ {[%emt 0:00:00]} 59. Kg1 {[%emt 0:00:28]} Ke2 {[%emt 0:00:03]} 60. Kh2 {[%emt 0:00:00] An entertaining game by Engin.   Weighted Error Value: White=0.27 (precise) /Black=0.13 (very precise)} 0-1

[Event "Turkish Youth Championships 2023"]
[Site "Samsun"]
[Date "2023.05.21"]
[Round "4.9"]
[White "Saka, Omer"]
[Black "Gungor, Cihan Akif"]
[Result "0-1"]
[WhiteElo "1843"]
[BlackElo "1771"]
[Annotator "COMBH"]
[PlyCount "100"]
[EventDate "2023.05.19"]
[EventType "swiss"]
[EventCountry "TUR"]
[TimeControl "5400+30"]
[WhiteClock "0:00:32"]

1. d4 {[%emt 0:01:00]} d5 {[%emt 0:01:00]} 2. c4 {[%emt 0:02:30]} e6 {[%emt 0:00:30]} 3. Nc3 {[%emt 0:00:30]} a6 {[%emt 0:00:00]} 4. cxd5 {[%emt 0:02:30]} exd5 {[%emt 0:00:00]} 5. Nf3 {[%emt 0:00:30]} Nf6 {[%emt 0:00:30]} 6. Bg5 {[%emt 0:00:30]} Be6 {[%emt 0:00:30]} 7. e3 {[%emt 0:04:30]} Nbd7 {[%emt 0:02:30]} 8. Bd3 {[%emt 0:02:30]} Bd6 {[%emt 0:00:30]} 9. O-O {[%emt 0:03:30]} O-O {[%emt 0:00:30]} 10. Rc1 {[%emt 0:04:30]} c6 {[%emt 0:00:30]} 11. Qc2 {[%emt 0:08:30]} h6 {[%emt 0:00:30]} 12. Bh4 {[%emt 0:00:30]} Qc7 {[%emt 0:05:30]} 13. a3 {[%emt 0:03:30]} Bg4 {[%emt 0:01:30]} 14. Bg3 {[%emt 0:01:30]} Bxf3 {[%emt 0:03:30]} 15. gxf3 {[%emt 0:00:00]} Rfe8 {[%emt 0:01:30]} 16. e4 {[%emt 0:08:00]} Bxg3 {[%emt 0:04:30]} 17. hxg3 {[%emt 0:00:30]} dxe4 {[%emt 0:00:30]} 18. fxe4 {[%emt 0:02:30]} Qb6 {[%emt 0:03:30]} 19. e5 {[%emt 0:03:30]} Nd5 {[%emt 0:00:30]} 20. Rfd1 {[%emt 0:07:30]} Nf8 {[%emt 0:08:30]} 21. Bc4 {[%emt 0:10:30]} Red8 {[%emt 0:11:30]} 22. Nxd5 {[%emt 0:04:30]} cxd5 {[%emt 0:00:30]} 23. Ba2 {[%emt 0:01:30]} Ne6 {[%emt 0:00:30]} 24. Qd2 {[%emt 0:00:30]} Qb5 {[%emt 0:02:30]} 25. f4 {[%emt 0:06:30]} Rac8 {[%emt 0:01:30]} 26. Kf2 {[%emt 0:01:47]} Rc6 {[%emt 0:01:30]} 27. Rc3 {[%emt 0:00:44]} Nxd4 {[%emt 0:05:30]} 28. Rxc6 {[%emt 0:02:26]} Nxc6 {[%emt 0:00:30]} 29. Re1 {[%emt 0:00:30]} Qb6+ {[%emt 0:07:30]} 30. Kg2 {[%emt 0:05:45]} Ne7 {[%emt 0:00:30]} 31. g4 {[%emt 0:00:30]} Qg6 {[%emt 0:00:30]} 32. Kh3 {[%emt 0:05:29]} h5 {[%emt 0:01:30]} 33. Qe2 {[%emt 0:02:16]} hxg4+ {[%emt 0:04:30]} 34. Qxg4 {[%emt 0:00:49]} Qd3+ {[%emt 0:00:30]} 35. Kh2 {[%emt 0:01:16]} Qd4 {[%emt 0:02:30]} 36. Re2 {[%emt 0:01:07]} Ng6 {[%emt 0:01:30]} 37. Kg3 {[%emt 0:00:51]} Qg1+ {[%emt 0:00:00]} 38. Kf3 {[%emt 0:03:42]} Qh1+ {[%emt 0:00:00]} 39. Kg3 {[%emt 0:00:11]} Re8 {[%emt 0:03:30]} 40. Bb3 {[%emt 0:00:32]} Qg1+ {[%emt 0:01:30]} 41. Kf3 {[%emt 0:00:30]} Qf1+ {[%emt 0:00:00]} 42. Ke3 {[%emt 0:00:31]} d4+ {[%emt 0:02:00]} 43. Kd2 {[%emt 0:00:25]} Nxf4 {[%emt 0:00:30]} 44. e6 {[%emt 0:00:28]} fxe6 {[%emt 0:01:30]} 45. Bxe6+ {[%emt 0:00:55]} Nxe6 {[%emt 0:00:30]} 46. Rxe6 {[%emt 0:00:00]} Qf2+ {[%emt 0:01:30]} 47. Kd1 {[%emt 0:00:38]} Rc8 {[%emt 0:00:30]} 48. Re2 {[%emt 0:00:33]} Qf1+ {[%emt 0:00:30]} 49. Kd2 {[%emt 0:00:03]} Qc1+ {[%emt 0:00:30]} 50. Kd3 {[%emt 0:00:30]} Qd1+ {[%emt 0:00:30]} 0-1